[Event "45th FIDE Olympiad 2024"]
[Site "Budapest"]
[Date "2024.09.12"]
[Round "2.57"]
[White "Volokitin, Andrei"]
[Black "Meier, Georg"]
[Result "1/2-1/2"]
[ECO "C11"]
[WhiteElo "2660"]
[BlackElo "2591"]
[Annotator "TA"]
[PlyCount "61"]
[EventDate "2024.09.05"]
[EventType "team-tourn"]
[EventCountry "HUN"]
[SourceTitle "playchess.com"]
[Source "ChessBase"]
[SourceQuality "1"]
[WhiteTeam "Ukraine"]
[BlackTeam "Uruguay"]
[WhiteTeamCountry "UKR"]
[BlackTeamCountry "URU"]
[TimeControl "40/5400+30:1800+30"]

{[%evp 18,61,12,0,35,35,39,43,43,36,37,41,35,39,43,48,34,43,42,38,33,19,25,22,21,21,23,17,18,15,16,24,20,0,0,0,0,-8,-8,-14,-11,-8,0,0,0,-719]} 1. e4 {[%emt 0:00:03]} e6 {[%emt 0:00:05]} 2. d4 {[%emt 0:00:05]} d5 {[%emt 0:00:04]} 3. Nc3 {[%emt 0:00:05]} Nf6 {[%emt 0:00:05]} 4. e5 {[%emt 0:00:24]} Nfd7 {[%emt 0:00:05]} 5. f4 {[%emt 0:00:03]} c5 {[%emt 0:00:07]} 6. Nf3 {[%emt 0:00:04]} Nc6 {[%emt 0:00:05]} 7. Be3 {[%emt 0:00:03]} cxd4 {[%emt 0:00:07]} 8. Nxd4 {[%emt 0:00:03]} Bc5 {[%emt 0:00:15]} 9. Qd2 {[%emt 0:01:36]} O-O {[%emt 0:00:17]} 10. O-O-O {[%emt 0:00:10]} Bxd4 {[%emt 0:00:30]} 11. Bxd4 {[%emt 0:00:06]} Qa5 {[%emt 0:00:12]} 12. Kb1 {[%emt 0:24:24]} Rb8 {[%emt 0:01:20] White is slightly better.} 13. Nb5 {[%emt 0:17:41]} Qxd2 {[%emt 0:00:34]} 14. Rxd2 {[%emt 0:00:01]} a6 {[%emt 0:00:11]} 15. Nd6 {[%emt 0:00:10]} Nxd4 {[%emt 0:02:32]} 16. Rxd4 {[%emt 0:00:02]} f6 {[%emt 0:00:08]} 17. exf6 {[%emt 0:07:52]} Nxf6 {[%emt 0:00:22]} 18. Nxc8 {[%emt 0:06:41]} Rfxc8 {[%emt 0:12:51]} 19. c4 {[%emt 0:00:59]} b5 {[%emt 0:00:25]} 20. cxd5 {[%emt 0:06:43]} Rd8 {[%emt 0:00:43]} 21. Be2 {[%emt 0:06:10]} Rxd5 {[%emt 0:00:09]} 22. Rhd1 {[%emt 0:00:21]} Kf7 {[%emt 0:21:04]} 23. Bf3 {[%emt 0:01:47]} Rxd4 {[%emt 0:04:18]} 24. Rxd4 $11 {[%emt 0:00:02][%mdl 4096] Endgame. KRB-KRN} Ke7 {[%emt 0:00:35] Inhibits Rd6.} 25. b4 {[%emt 0:02:11] The position is equal.} h6 {[%emt 0:09:45]} 26. Kc2 {[%emt 0:13:26]} g5 {[%emt 0:17:28]} 27. Kd3 {[%emt 0:03:17]} Rc8 {[%emt 0:03:51]} 28. Kd2 {[%emt 0:02:48]} gxf4 {[%emt 0:10:22]} 29. Rxf4 {[%emt 0:00:02]} Rd8+ {[%emt 0:00:09]} 30. Ke3 {[%emt 0:01:07]} Nd5+ {[%emt 0:02:18]} 31. Ke4 $2 {[%emt 0:02:23][%mdl 40960] Weighted Error Value: White=0.04 (flawless) /Black=0.03 (flawless) .  Loses game:     	White=1     	---        OK:         	White=9     	Black=12    . An unexpected result.} (31. Bxd5 $11 Rxd5 32. Rg4) 1/2-1/2

[Event "45th FIDE Olympiad 2024"]
[Site "Budapest"]
[Date "2024.09.12"]
[Round "2.57"]
[White "Celis, Joel"]
[Black "Cogan, Nicolas"]
[Result "1-0"]
[ECO "B38"]
[WhiteElo "1929"]
[BlackElo "2112"]
[Annotator "ChessBase"]
[PlyCount "113"]
[EventDate "2024.09.05"]
[EventType "team-tourn"]
[EventCountry "HUN"]
[SourceTitle "playchess.com"]
[Source "ChessBase"]
[SourceQuality "1"]
[WhiteTeam "Macau"]
[BlackTeam "Cote d/^Ivoire"]
[WhiteTeamCountry "MAC"]
[TimeControl "40/5400+30:1800+30"]

1. e4 c5 2. Nf3 Nc6 3. d4 cxd4 4. Nxd4 g6 5. c4 Bg7 6. Be3 Qb6 7. Nb5 Qa5+ 8. Bd2 Qd8 9. Bc3 Nf6 10. Nd2 d6 11. Be2 O-O 12. g4 a6 13. Nd4 Qb6 14. Nxc6 bxc6 15. Bf3 e5 16. g5 Nd7 17. Nb3 a5 18. Qxd6 a4 19. c5 Qd8 20. Nd2 Qxg5 21. Qxc6 Ra6 22. Qd5 Qe7 23. Bb4 Nb8 24. Be2 Be6 25. Qd3 Nc6 26. Qxa6 Nxb4 27. Qxa4 Qxc5 28. O-O Bh3 29. Qb3 Bxf1 30. Nxf1 Nc6 31. Qc4 Qd6 32. Rd1 Nd4 33. Ng3 h5 34. Qd3 Rd8 35. Kh1 Qf6 36. Qe3 Kh7 37. f3 Bh6 38. Qf2 Rc8 39. Bd3 Rb8 40. b3 Ra8 41. Bb1 Rc8 42. Ne2 Nxe2 43. Qxe2 Rc3 44. Bd3 Qh4 45. b4 Bf8 46. b5 Bc5 47. a4 Ra3 48. Bc2 Qf4 49. Rf1 Bd4 50. Bd1 Kg7 51. Qc2 Rc3 52. Qe2 Ra3 53. Qg2 Rd3 54. a5 Rd2 55. Qg3 Qe3 56. f4 Qxe4+ 57. Qf3 1-0

[Event "45th FIDE Olympiad 2024"]
[Site "Budapest"]
[Date "2024.09.12"]
[Round "2.58"]
[White "Rodriguez Vila, Andres"]
[Black "Ivanchuk, Vasyl"]
[Result "0-1"]
[ECO "B81"]
[WhiteElo "2417"]
[BlackElo "2635"]
[Annotator "TA"]
[PlyCount "64"]
[EventDate "2024.09.05"]
[EventType "team-tourn"]
[EventCountry "HUN"]
[SourceTitle "playchess.com"]
[Source "ChessBase"]
[SourceQuality "1"]
[WhiteTeam "Uruguay"]
[BlackTeam "Ukraine"]
[WhiteTeamCountry "URU"]
[BlackTeamCountry "UKR"]
[TimeControl "40/5400+30:1800+30"]

{[%evp 12,64,20,16,39,25,7,0,0,0,0,23,0,0,0,0,2,0,22,46,115,110,149,150,166,167,238,116,97,77,130,126,121,109,112,0,0,-342,-347,-341,-331,-391,-414,-427,-416,-431,-412,-425,-427,-2245,-2245,-2200,-2068,-1906,-1859]} 1. e4 {[%emt 0:00:12]} c5 {[%emt 0:00:07]} 2. Nf3 {[%emt 0:00:04]} d6 {[%emt 0:00:03]} 3. d4 {[%emt 0:00:06]} cxd4 {[%emt 0:00:03]} 4. Nxd4 {[%emt 0:00:06]} Nf6 {[%emt 0:00:03]} 5. Nc3 {[%emt 0:00:18]} a6 {[%emt 0:00:03]} 6. h3 {[%emt 0:00:18]} e6 {[%emt 0:00:34]} 7. g4 {[%emt 0:00:09]} Nfd7 {[%emt 0:00:03]} 8. Be3 {[%emt 0:00:21]} b5 {[%emt 0:00:15]} 9. Qd2 {[%emt 0:01:00]} Bb7 {[%emt 0:00:17] The position is equal.} 10. a3 {[%emt 0:00:11]} Nb6 {[%emt 0:01:36]} 11. O-O-O {[%emt 0:04:59]} N8d7 {[%emt 0:03:08]} 12. Kb1 {[%emt 0:01:23]} Rc8 {[%emt 0:01:40]} 13. Bg5 {[%emt 0:00:24]} Qc7 {[%emt 0:01:31]} 14. f4 {[%emt 0:05:10]} h5 {[%emt 0:04:59]} 15. gxh5 {[%emt 0:05:36][%cal Oh5h6]} Rxh5 {[%emt 0:00:55]} (15... Nc5 $14) 16. h4 $1 $16 {[%emt 0:01:00]} Nc4 {[%emt 0:01:04]} 17. Bxc4 {[%emt 0:00:21]} Qxc4 {[%emt 0:00:01] [#]} 18. Rh3 $1 {[%emt 0:01:59]} (18. f5 $6 e5 19. Nde2 b4 20. axb4 Qxb4 $11) 18... Nf6 {[%emt 0:02:52]} (18... g6 {might work better.} 19. f5 gxf5) 19. f5 {[%emt 0:10:33]} (19. e5 $18 {has better winning chances.} dxe5 (19... Ne4 $2 20. Nxe4 Bxe4 21. Rc3 $18) 20. Ndxb5 (20. fxe5 Nd5 $16)) 19... e5 {[%emt 0:08:43]} (19... Nxe4 $2 20. Nxe4 Bxe4 21. Rc3 $18) 20. Bxf6 {[%emt 0:00:10]} gxf6 {[%emt 0:00:01]} 21. Nb3 {[%emt 0:05:02]} b4 {[%emt 0:00:34]} (21... Bxe4 $2 22. Na5 Bxf5 23. Nxc4 $18) 22. axb4 {[%emt 0:03:33]} Bxe4 {[%emt 0:00:04]} 23. Na5 {[%emt 0:38:30]} ({White must play} 23. Nxe4 $16 Qxe4 24. Rc3 Rxc3 (24... Qxf5 25. Qe2 $16) 25. Qxc3 Qxf5 26. Qc6+ Qd7 27. Qa8+ (27. Qxa6 Qg4 $18) 27... Qd8 28. Qxa6) 23... Qxb4 $11 {[%emt 0:00:21][%cal Oe4f5]} 24. Qe2 $2 {[%emt 0:00:57][%mdl 8192]} (24. Nxe4 $11 {and White has nothing to worry.} Qxe4 25. Rc3 Qxf5 26. Nc4) 24... Bxf5 $19 {[%emt 0:20:17] This pair of bishops is nice.} (24... Rxf5 $2 25. Nxe4 (25. Qxe4 Qxe4 26. Nxe4 d5 $18) 25... Qxa5 26. Qg4 $18 (26. Nxd6+ Bxd6 27. Rxd6 Rf4 $14)) 25. Qxh5 {[%emt 0:02:03] [#]} Bg4 {[%emt 0:19:18]} (25... Bxh3 26. Nd5 Qc5 (26... Qxa5 27. Nxf6+ Ke7 28. Nd5+ Ke8 29. Nf6+ Ke7 30. Nd5+ Ke8 31. Nf6+ $11) 27. Nxf6+ Ke7 28. Nd5+ Ke8 (28... Ke6 29. Qe2 $11) 29. Nf6+ Ke7 30. Nd5+ Ke8 (30... Ke6 31. Qe2 $11) 31. Nf6+ $11) 26. Qh8 {[%emt 0:10:49] aiming for Nd5.} Bxh3 {[%emt 0:04:59]} 27. Nb3 {[%emt 0:00:08][%cal Oc3d5]} Be6 {[%emt 0:12:52] ...a5 would now be deadly.} 28. Qxf6 {[%emt 0:01:14]} a5 {[%emt 0:03:32][%cal Oa5a4] Hoping for ...a4!} ({Not} 28... Qf4 29. Qxf4 exf4 30. Rd3 $19) 29. Na2 {[%emt 0:05:47]} Qe4 {[%emt 0:07:00] Black is clearly winning.} ({Weaker is} 29... Qf4 30. Qxf4 exf4 31. Nxa5 $19) 30. Nc3 {[%emt 0:00:27]} (30. Na1 $142) 30... Rxc3 {[%emt 0:01:34]} 31. bxc3 {[%emt 0:00:01]} Bxb3 {[%emt 0:00:04]} 32. Qf2 {[%emt 0:00:04] [#]} Qa4 $1 {[%emt 0:00:53] Weighted Error Value: White=0.49/Black=0.11 (very precise) .  Loses game:     	White=1     	---        Mistake:       	White=3     	Black=2      Inaccurate:     	---       	Black=2      OK:         	White=10    	Black=12     Best:        	White=2     	Black=4      Strong:       	White=2     	---} 0-1

[Event "45th FIDE Olympiad 2024"]
[Site "Budapest"]
[Date "2024.09.12"]
[Round "2.58"]
[White "De Gondo, Simplice Armel"]
[Black "Mak, Tong Kuan"]
[Result "1-0"]
[ECO "E81"]
[WhiteElo "2045"]
[BlackElo "1902"]
[Annotator "NA"]
[PlyCount "33"]
[EventDate "2024.09.05"]
[EventType "team-tourn"]
[EventCountry "HUN"]
[SourceTitle "playchess.com"]
[Source "ChessBase"]
[SourceQuality "1"]
[WhiteTeam "Cote d/^Ivoire"]
[BlackTeam "Macau"]
[BlackTeamCountry "MAC"]
[TimeControl "40/5400+30:1800+30"]

1. c4 Nf6 2. Nc3 d6 3. d4 g6 4. e4 Bg7 5. f3 O-O 6. Bg5 c6 7. Qd2 a6 8. g4 b5 9. h4 b4 10. Nd1 Qb6 11. h5 Nxe4 12. fxe4 Bxg4 13. Be2 Bxd4 14. Bxg4 Bxg1 15. Qg2 Bd4 16. hxg6 fxg6 17. Be6+ 1-0

[Event "45th FIDE Olympiad 2024"]
[Site "Budapest"]
[Date "2024.09.12"]
[Round "2.59"]
[White "Ponomariov, Ruslan"]
[Black "Vazquez, Facundo"]
[Result "1-0"]
[ECO "B22"]
[WhiteElo "2654"]
[BlackElo "2388"]
[Annotator "TA"]
[PlyCount "117"]
[EventDate "2024.09.05"]
[EventType "team-tourn"]
[EventCountry "HUN"]
[SourceTitle "playchess.com"]
[Source "ChessBase"]
[SourceQuality "1"]
[WhiteTeam "Ukraine"]
[BlackTeam "Uruguay"]
[WhiteTeamCountry "UKR"]
[BlackTeamCountry "URU"]
[TimeControl "40/5400+30:1800+30"]

{[%evp 9,117,7,9,10,8,9,12,21,16,13,45,5,46,46,42,37,47,48,53,51,51,45,54,60,58,65,54,47,52,62,56,47,43,50,50,41,46,47,48,42,59,50,55,50,47,46,46,41,41,39,44,42,47,39,35,37,41,43,39,35,45,35,49,41,92,98,78,102,93,106,86,87,90,104,114,90,143,147,128,85,99,102,97,60,123,118,159,151,179,169,186,162,156,153,360,358,353,347,725,753,900,883,1101,1251,977,1076,1662,1108,12834,9496]} 1. e4 {[%emt 0:00:03]} c5 {[%emt 0:00:08]} 2. Nf3 {[%emt 0:00:07]} e6 {[%emt 0:00:05]} 3. c3 {[%emt 0:00:16]} Nf6 {[%emt 0:00:24]} 4. e5 {[%emt 0:00:26]} Nd5 {[%emt 0:00:16]} 5. Bc4 {[%emt 0:00:11]} d6 {[%emt 0:01:24]} 6. d4 {[%emt 0:00:45]} Nc6 {[%emt 0:01:22]} 7. O-O {[%emt 0:01:44]} Be7 {[%emt 0:01:55] Repels Bg5} 8. Bxd5 {[%emt 0:06:33] The position is equal.} exd5 {[%emt 0:00:10]} 9. exd6 {[%emt 0:00:07]} Bxd6 {[%emt 0:18:24]} 10. Re1+ {[%emt 0:05:10]} Ne7 {[%emt 0:04:59]} 11. dxc5 {[%emt 0:05:13]} Bxc5 {[%emt 0:00:12]} 12. Be3 {[%emt 0:00:25]} Bd6 {[%emt 0:04:58] [#]} 13. Bf4 $1 {[%emt 0:06:19]} O-O {[%emt 0:03:59]} 14. Bxd6 {[%emt 0:00:18]} Qxd6 {[%emt 0:00:03]} 15. Nbd2 {[%emt 0:00:29][%cal Bb1d2,Bd2f1,Bf1e3][%mdl 32]} Rd8 {[%emt 0:05:02]} 16. Nd4 {[%emt 0:04:25]} Ng6 {[%emt 0:04:47][%cal Be7g6,Bg6f4,Bf4h3,Bh3g5,Bg5e4][%mdl 32]} 17. Nf1 {[%emt 0:02:03]} Bd7 {[%emt 0:05:33]} 18. Ne3 {[%emt 0:08:31]} Re8 {[%emt 0:06:53]} 19. Qb3 {[%emt 0:03:17]} Bc6 {[%emt 0:01:53]} 20. Rad1 {[%emt 0:00:17]} Nf4 {[%emt 0:06:47]} 21. Qc2 {[%emt 0:06:56]} Rad8 {[%emt 0:06:44]} 22. g3 {[%emt 0:05:53]} Nh3+ {[%emt 0:02:25]} 23. Kg2 {[%emt 0:00:28]} Ng5 {[%emt 0:00:59]} 24. h4 {[%emt 0:02:18]} Ne4 {[%emt 0:02:30]} 25. Nef5 {[%emt 0:01:35] Excellent horsemanship.} Qf6 {[%emt 0:00:50]} 26. f3 {[%emt 0:03:06]} Nc5 {[%emt 0:03:59]} 27. Qd2 {[%emt 0:07:42]} Ne6 {[%emt 0:03:32]} 28. Re3 {[%emt 0:03:17]} Nxd4 {[%emt 0:01:49]} 29. Nxd4 {[%emt 0:01:45]} Rxe3 {[%emt 0:00:07]} 30. Qxe3 {[%emt 0:00:03]} Re8 {[%emt 0:00:09]} 31. Qg5 {[%emt 0:01:05]} Qxg5 {[%emt 0:02:19]} 32. hxg5 $14 {[%emt 0:00:06][%mdl 4096] Endgame. KRB-KRN} g6 {[%emt 0:00:34]} 33. Rh1 {[%emt 0:03:58]} Re5 {[%emt 0:01:19]} 34. f4 {[%emt 0:05:05]} Re3 {[%emt 0:00:51]} 35. Kf2 {[%emt 0:02:24]} Rd3 {[%emt 0:01:30]} 36. Re1 $1 {[%emt 0:00:48]} Rd2+ {[%emt 0:01:29]} (36... Kf8 $14) 37. Re2 $16 {[%emt 0:00:49]} Rd1 {[%emt 0:00:32]} 38. g4 {[%emt 0:02:50]} Kf8 {[%emt 0:02:39]} 39. f5 {[%emt 0:01:19]} gxf5 {[%emt 0:00:20]} 40. gxf5 {[%emt 0:00:13]} h6 {[%emt 0:02:42]} 41. gxh6 {[%emt 0:31:30]} Rh1 {[%emt 0:31:10]} 42. Kg3 {[%emt 0:00:22]} Rxh6 {[%emt 0:00:14]} ({Better is} 42... Bd7) 43. Kf4 $1 {[%emt 0:00:08]} Rh1 {[%emt 0:00:00]} 44. Kg5 {[%emt 0:00:00]} Rg1+ {[%emt 0:00:00]} 45. Kf6 {[%emt 0:00:00] Hoping for Re7.} Rh1 {[%emt 0:00:00]} 46. Nf3 {[%emt 0:00:00] aiming for Rh2.} Rh6+ {[%emt 0:00:00] [#]} (46... Bb5 $14 47. Re1 Rh6+ 48. Ke5 Bd3) 47. Kg5 $1 {[%emt 0:00:00]} Rh3 {[%emt 0:00:00]} 48. Nd4 {[%emt 0:00:00]} Rh1 {[%emt 0:00:00] [#]} 49. f6 $1 {[%emt 0:00:00]} Rg1+ {[%emt 0:00:00]} 50. Kf4 {[%emt 0:00:00]} Rf1+ {[%emt 0:00:00]} 51. Ke5 {[%emt 0:00:00] Rh2 is the strong threat. White is more active.} Bd7 $2 {[%emt 0:00:00] Loses the game.} (51... Ke8 $16) 52. Rh2 $18 {[%emt 0:00:00]} (52. Kxd5 Rxf6 53. b3 b6 $11) 52... Kg8 {[%emt 0:00:00] Inhibits Rh8+.} 53. Kd6 {[%emt 0:00:00]} (53. Kxd5 Rxf6 54. b4 Rg6 $11) 53... Bc6 {[%emt 0:00:00]} (53... Bf5 54. Kc7 (54. Kxd5 Bb1 $18) 54... Bd3) 54. Ke7 {[%emt 0:00:00] Rg2+ would now be deadly. White is clearly winning.} Re1+ {[%emt 0:00:00]} 55. Re2 {[%emt 0:00:00]} Rxe2+ {[%emt 0:01:16]} 56. Nxe2 {[%emt 0:00:00] Black must now prevent Nd4.} Bb5 {[%emt 0:02:49]} 57. Nf4 {[%emt 0:00:00]} Bc6 {[%emt 0:00:07]} 58. a3 {[%emt 0:01:30]} a5 {[%emt 0:00:35]} 59. Nd3 {[%emt 0:00:52] Weighted Error Value: White=0.05 (flawless) /Black=0.14 (very precise) .  Loses game:     	---       	Black=1      Mistake:       	---       	Black=4      Inaccurate:     	White=3     	Black=3      OK:         	White=19    	Black=17     Best:        	White=5     	Black=5      Strong:       	White=3     	---} 1-0

[Event "45th FIDE Olympiad 2024"]
[Site "Budapest"]
[Date "2024.09.12"]
[Round "2.59"]
[White "Wong, Kai Meng"]
[Black "Manan, Yoboue Hermann"]
[Result "0-1"]
[ECO "D02"]
[WhiteElo "1795"]
[BlackElo "2030"]
[Annotator "NA"]
[PlyCount "84"]
[EventDate "2024.09.05"]
[EventType "team-tourn"]
[EventCountry "HUN"]
[SourceTitle "playchess.com"]
[Source "ChessBase"]
[SourceQuality "1"]
[WhiteTeam "Macau"]
[BlackTeam "Cote d/^Ivoire"]
[WhiteTeamCountry "MAC"]
[TimeControl "40/5400+30:1800+30"]

1. Nf3 Nf6 2. g3 d5 3. d4 e6 4. Bg2 c5 5. e3 Nc6 6. O-O Bd6 7. c3 O-O 8. Nbd2 Re8 9. Qc2 Qb6 10. dxc5 Bxc5 11. b4 Bd6 12. a4 Qc7 13. Rb1 Nxb4 14. Qb3 Nc6 15. Ba3 Na5 16. Bxd6 Qxd6 17. Qb5 b6 18. e4 Bd7 19. Qd3 e5 20. Rfe1 Nb7 21. Nc4 dxc4 22. Qxd6 Nxd6 23. Rbd1 Nb7 24. Nxe5 Bxa4 25. Ra1 Bb5 26. Nxf7 Bc6 27. Ng5 h6 28. Nh3 Bxe4 29. f3 Bc6 30. Rxe8+ Nxe8 31. Nf4 Nc5 32. Ng6 Bb7 33. Ne5 b5 34. Bh3 a5 35. Bf5 a4 36. Kf1 a3 37. Ke2 a2 38. Kd1 Nd6 39. Bc2 Nb3 40. Bxb3 cxb3 41. Kc1 Nc4 42. Nd3 Bxf3 0-1

[Event "45th FIDE Olympiad 2024"]
[Site "Budapest"]
[Date "2024.09.12"]
[Round "2.60"]
[White "Roselli Mailhe, Bernardo"]
[Black "Onyshchuk, Volodymyr"]
[Result "0-1"]
[ECO "E68"]
[WhiteElo "2362"]
[BlackElo "2610"]
[Annotator "TA"]
[PlyCount "110"]
[EventDate "2024.09.05"]
[EventType "team-tourn"]
[EventCountry "HUN"]
[SourceTitle "playchess.com"]
[Source "ChessBase"]
[SourceQuality "1"]
[WhiteTeam "Uruguay"]
[BlackTeam "Ukraine"]
[WhiteTeamCountry "URU"]
[BlackTeamCountry "UKR"]
[TimeControl "40/5400+30:1800+30"]

{[%evp 24,110,20,5,3,0,0,0,0,-6,-4,-37,-37,-49,-20,-76,-58,-61,-68,-56,-58,-122,-138,-118,-110,-150,-135,-157,-147,-158,-153,-132,-145,-151,-131,-133,-135,-123,-125,-159,-156,-145,-162,-252,-253,-253,-236,-309,-306,-329,-311,-507,-495,-496,-487,-487,-488,-479,-439,-482,-445,-520,-534,-521,-578,-580,-577,-496,-397,-397,-424,-411,-350,-505,-484,-681,-647,-1610,-1147,-2195,-1461,-8981,-6796,-29946,-29951,-5501,-12849,-29974,-29975]} 1. d4 {[%emt 0:00:08]} Nf6 {[%emt 0:00:11]} 2. c4 {[%emt 0:00:30]} g6 {[%emt 0:00:07]} 3. Nf3 {[%emt 0:01:08]} Bg7 {[%emt 0:00:13]} 4. g3 {[%emt 0:00:41]} O-O {[%emt 0:00:21]} 5. Bg2 {[%emt 0:00:06]} d6 {[%emt 0:00:28]} 6. O-O {[%emt 0:01:12]} Nbd7 {[%emt 0:01:54]} 7. Nc3 {[%emt 0:01:08]} e5 {[%emt 0:01:18]} 8. e4 {[%emt 0:00:24]} Re8 {[%emt 0:02:16]} 9. d5 {[%emt 0:07:16]} Nc5 {[%emt 0:01:01]} 10. Ne1 {[%emt 0:00:14]} a5 {[%emt 0:01:45]} 11. Nd3 {[%emt 0:00:52]} Nfd7 {[%emt 0:03:31] E68: King's Indian: Fianchetto: 6...Nbd7 7 0-0 e5 8 e4.} 12. Be3 {[%emt 0:05:30]} b6 {[%emt 0:02:08]} 13. Nxc5 {[%emt 0:10:01]} Nxc5 {[%emt 0:05:16]} 14. Qd2 {[%emt 0:09:44]} f5 {[%emt 0:07:46]} 15. f3 {[%emt 0:07:19]} Rf8 {[%emt 0:03:28]} 16. Bg5 $146 {[%emt 0:04:14]} ({Predecessor:} 16. Rfe1 Bd7 17. Rab1 Qc8 18. b4 axb4 19. Rxb4 f4 20. Bf2 Bh6 21. Bxc5 bxc5 22. Rb3 {0-1 Gorcsi,G (2220)-Polgar,T (2208) Balaton IM 37th 2019 (4)}) 16... Qe8 {[%emt 0:10:46]} 17. Rfe1 {[%emt 0:07:24]} f4 {[%emt 0:09:01]} 18. g4 {[%emt 0:00:48]} h5 {[%emt 0:07:45]} 19. h3 {[%emt 0:00:27]} (19. Nb5 $11 Na6 (19... hxg4 20. Nxc7 Qd7 21. Nxa8 $18) 20. h3) 19... Qf7 {[%emt 0:06:10]} 20. Kf2 {[%emt 0:07:59]} Bf6 {[%emt 0:01:37]} 21. Bxf6 $1 {[%emt 0:06:50]} Qxf6 {[%emt 0:00:10]} 22. Rg1 {[%emt 0:01:20]} ({White should play} 22. Rf1 $15) 22... hxg4 $1 $17 {[%emt 0:11:50]} (22... Qh4+ $6 23. Ke2 $11) 23. hxg4 {[%emt 0:01:34]} Bxg4 {[%emt 0:00:10]} (23... Qh4+ 24. Kf1 $16) 24. Ke2 {[%emt 0:13:27]} Bd7 {[%emt 0:00:48]} 25. Rh1 {[%emt 0:00:15]} Kg7 {[%emt 0:02:28]} 26. Bh3 {[%emt 0:02:54]} Rh8 {[%emt 0:13:10]} 27. Bxd7 {[%emt 0:00:59]} Nxd7 {[%emt 0:00:02]} 28. Rag1 {[%emt 0:02:57]} Rxh1 {[%emt 0:02:35]} 29. Rxh1 {[%emt 0:00:04]} Qg5 {[%emt 0:00:06]} 30. Kf1 {[%emt 0:02:32] [#]} Qg3 $1 {[%emt 0:00:27]} 31. Qe2 {[%emt 0:00:43]} Nf6 {[%emt 0:00:36]} 32. Nb5 {[%emt 0:01:38]} Rc8 {[%emt 0:00:12]} 33. Qg2 {[%emt 0:00:22] [#]} (33. Na7 {is a better defense.} Rg8 34. Qf2) 33... Qxg2+ $1 $19 {[%emt 0:00:26]} 34. Kxg2 {[%emt 0:00:05]} g5 {[%emt 0:00:07]} 35. b3 {[%emt 0:00:31]} g4 {[%emt 0:01:45]} 36. Rh4 {[%emt 0:00:29]} Kg6 {[%emt 0:00:51]} 37. Na7 $2 {[%emt 0:01:06]} (37. Kf2) 37... Rg8 {[%emt 0:00:28]} 38. Nb5 {[%emt 0:00:08]} gxf3+ {[%emt 0:02:38]} 39. Kxf3 {[%emt 0:00:13]} Kf7 {[%emt 0:00:06]} 40. Rh3 {[%emt 0:00:46]} Rg1 {[%emt 0:00:37]} 41. Nxc7 {[%emt 0:33:19]} Re1 {[%emt 0:31:44]} 42. Kf2 {[%emt 0:00:00]} Ra1 {[%emt 0:00:00]} (42... Nxe4+ $2 {is the wrong capture.} 43. Kxe1 Kg6 44. Rh8 $18) (42... Rxe4 43. Nb5 Ke7 44. Kf1 $11) 43. Kf3 {[%emt 0:00:00]} Rxa2 {[%emt 0:00:00]} 44. Nb5 {[%emt 0:00:00]} Ke7 {[%emt 0:00:00]} 45. Rh6 {[%emt 0:00:00]} Rf2+ {[%emt 0:00:00]} 46. Kxf2 {[%emt 0:00:00]} Ng4+ {[%emt 0:00:00]} (46... Nxe4+ $2 {perishes.} 47. Ke1 $18) 47. Ke2 {[%emt 0:00:00]} Nxh6 {[%emt 0:00:00]} 48. Nc7 {[%emt 0:00:00]} (48. Na7 {was necessary.} Kd7 49. Nb5) 48... Nf7 {[%emt 0:00:00]} 49. Na8 {[%emt 0:00:00]} (49. Nb5 $142) 49... Ng5 $19 {[%emt 0:00:00]} 50. Kd3 {[%emt 0:00:00]} f3 {[%emt 0:00:00]} 51. Nxb6 {[%emt 0:00:00]} Nxe4 {[%emt 0:00:00]} 52. Na4 {[%emt 0:00:00]} Nf6 {[%emt 0:00:00]} 53. Nc3 {[%emt 0:00:00]} e4+ {[%emt 0:00:02]} 54. Kd2 {[%emt 0:00:00]} f2 {[%emt 0:00:31]} 55. Ke2 {[%emt 0:00:00]} e3 $1 {[%emt 0:00:06]} 0-1